Cogmind - Beta 13 @@@ ROGUE MODE // 2024.04.18 @ 16:36:13 Player: Skysub Result: Destroyed by D-53 Grenadier with Mini Grenade Launcher Performance ------------- Evolutions (0) 0 Regions Visited (4) 800 Robots Destroyed (28) 140 Value Destroyed (469) 469 Prototype IDs (0) 0 Alien Tech Used (0) 0 Bonus (2) 2 TOTAL SCORE: 1411 Bonus ------- High Alert Combat Kills 2 Cogmind --------- Core Integrity 0/250 Matter 87/300 Energy 100/100 System Corruption 0% Temperature Cool (0) Movement Core (450) Ox8 Location -9/Mines Parts ------- > --- POWER (1) -------- (None) > --- PROPULSION (2) --- (None) > --- UTILITY (2) ------ Large Storage Unit > --- WEAPON (2) ------- Heavy Assault Rifle Grenade Launcher > --- INVENTORY (15) --- Improved Heat Sink High-capacity Battery (250) High-capacity Matter Pod (200) Visual Processing Unit Targeting Computer Targeting Computer Targeting Computer Targeting Computer Medium Armor Plating Improved Light Armor Plating Reactive Plating EM Pulse Cannon Assault Rifle Assault Rifle Rocket Launcher Peak State ------------ > --- POWER ------------ Light Deuterium Engine > --- PROPULSION ------- Light Treads Light Treads > --- UTILITY ---------- Large Storage Unit Weapon Shielding > --- WEAPON ----------- Heavy Assault Rifle Rocket Launcher > --- INVENTORY -------- Improved Heat Sink Medium Storage Unit High-capacity Battery High-capacity Matter Pod Visual Processing Unit Targeting Computer Targeting Computer Targeting Computer Targeting Computer Improved Light Armor Plating Reactive Plating EM Pulse Cannon Assault Rifle Assault Rifle Grenade Launcher [Rating: 13] Favorites ----------- Power Light Deuterium Engine Engine Light Deuterium Engine Propulsion Light Treads Treads Light Treads Wheel Wheel Utility Weapon Shielding Storage Large Storage Unit Processor Signal Interpreter Protection Weapon Shielding Weapon Assault Rifle Ballistic Gun Assault Rifle Launcher Grenade Launcher Build | -11 -10 -10 -10 -9 ------- Run | Yrd Mat Min Exi Min Slots Evolved . | . . . . . Power . | . . . . . Propulsion . | . . . . . Utility . | . . . . . Weapon . | . . . . . Parts Attached 21 | 8 3 4 . 6 Power 2 | 1 . 1 . . Engine 2 | 1 . 1 . . Core . | . . . . . Reactor . | . . . . . Propulsion 4 | 4 . . . . Treads 2 | 2 . . . . Leg . | . . . . . Wheel 2 | 2 . . . . Hover . | . . . . . Flight . | . . . . . Utility 6 | 1 3 2 . . Device . | . . . . . Storage 3 | 1 1 1 . . Processor 1 | . 1 . . . Hackware . | . . . . . Protection 2 | . 1 1 . . Artifact . | . . . . . Weapon 9 | 2 . 1 . 6 Energy Gun . | . . . . . Energy Cannon . | . . . . . Ballistic Gun 6 | 2 . 1 . 3 Ballistic Cannon . | . . . . . Launcher 3 | . . . . 3 Special Weapon . | . . . . . Impact Weapon . | . . . . . Slashing Weapon . | . . . . . Piercing Weapon . | . . . . . Special Melee Weapon . | . . . . . Unidentified Prototypes . | . . . . . Parts Lost 5 | . . 1 . 4 Power 1 | . . . . 1 Propulsion 2 | . . . . 2 Utility 1 | . . . . 1 Weapon 1 | . . 1 . . Highest Loss Streak 4 | . . 1 . 4 To Critical Strikes . | . . . . . Average Slot Usage (%) 97 | . 90 100 100 97 Engine 13 | . 14 14 14 13 Treads 27 | . 28 28 28 26 Storage 14 | . 14 14 14 14 Protection 11 | . 2 14 14 13 Ballistic Gun 25 | . 28 28 28 13 Launcher 2 | . . . . 14 Naked Turns . | . . . . . Heaviest Build 33 | 12 18 30 30 33 Greatest Support 40 | 40 40 40 40 40 Greatest Overweight (x) 8 | . . . . 8 Average Overweight (x) . | . . . . . Largest Inventory Capacity 15 | 8 10 15 15 15 Average Capacity 13 | 6 8 13 15 15 Most Carried 15 | 2 10 12 14 15 Average Carried 10 | 1 6 10 12 14 Final Capacity 15 | 8 10 15 15 15 Final Carried 15 | 2 10 12 14 15 Class Distribution -------------------- 100% | Mutant Dominant Class ---------------- Mutant | -10/Materials Mutant | -10/Mines Mutant | -10/Exiles Mutant | -9/Mines Resources | -11 -10 -10 -10 -9 ----------- Run | Yrd Mat Min Exi Min Matter Collected 695 | 228 275 114 . 78 Remotely . | . . . . . Salvage Created 556 | . 381 65 . 110 Parts 49 | . 20 11 . 18 Haulers Intercepted 1 | . 1 . . . Recyclers Shooed 2 | . 2 . . . Parts Field Recycled . | . . . . . Retrieved Matter . | . . . . . Parts Self-Destructed . | . . . . . Prevented . | . . . . . Kills | -11 -10 -10 -10 -9 ------- Run | Yrd Mat Min Exi Min Combat Hostiles Destroyed 40 | . 6 6 . 28 Guns 13 | . 6 6 . 1 AOE 27 | . . . . 27 Classes Destroyed 9 | . 6 1 . 2 Worker 1 | . 1 . . . Builder 1 | . . . . 1 Hauler 1 | . 1 . . . Recycler 2 | . 2 . . . Operator 1 | . 1 . . . Watcher 1 | . 1 . . . Swarmer 15 | . . 6 . 9 Grunt 6 | . 6 . . . Assembled 19 | . . . . 19 Best Kill Streak 19 | . 4 3 . 19 Combat Bots Only 19 | . 2 3 . 19 Max Kills in Single Turn 7 | . 1 1 . 7 Gunslinging . | . . . . . Exploded 7 | . . . . 7 Melee . | . . . . . Uniques/NPCs Destroyed . | . . . . . Combat | -11 -10 -10 -10 -9 -------- Run | Yrd Mat Min Exi Min Hostile Shots Fired 106 | . 26 34 . 46 Missed 28 | . 7 7 . 14 Damage Taken 1063 | . 221 226 . 616 Core 287 | . 40 21 . 226 Absorbed by Shields . | . . . . . Redirected to Shielding 52 | . 9 28 . 15 Core Remaining (%) 100 | 100 . . . . Volleys Fired 69 | . 33 16 . 20 Largest 2 | . 2 2 . 2 Hottest 63 | . 40 40 . 63 Shots Fired 133 | . 66 32 . 35 Gun 113 | . 66 32 . 15 Cannon . | . . . . . Launcher 20 | . . . . 20 Special . | . . . . . Kinetic 113 | . 66 32 . 15 Thermal . | . . . . . Explosive 20 | . . . . 20 Electromagnetic . | . . . . . Robot Hit Streak 12 | . 12 8 . 3 Robot Miss Streak 3 | . 3 3 . 2 Penetration Max . | . . . . . Secondary Targets 3 | . 1 2 . . Max Gunslinging Chain 1 | . 1 1 . . Shots Hit Robots 71 | . 45 10 . 16 Core Hits 74 | . 17 8 . 49 Critical Kills 1 | . 1 . . . Critical Parts Destroyed . | . . . . . Critical Strikes 1 | . 1 . . . Destroy 1 | . 1 . . . Melee Attacks . | . . . . . Impact . | . . . . . Slashing . | . . . . . Piercing . | . . . . . Sneak Attacks . | . . . . . Combat Hostiles . | . . . . . Follow-up Attacks . | . . . . . Damage Inflicted 2268 | . 598 160 . 1510 Guns 835 | . 584 125 . 126 Cannons . | . . . . . Explosions 1384 | . . . . 1384 Melee . | . . . . . Ramming 49 | . 14 35 . . Kinetic 835 | . 584 125 . 126 Thermal . | . . . . . Explosive 1384 | . . . . 1384 Electromagnetic . | . . . . . Impact . | . . . . . Slashing . | . . . . . Piercing . | . . . . . Highest Corruption . | . . . . . Average Corruption . | . . . . . Corruption Purged . | . . . . . Corruption Blocked . | . . . . . Overload Shots . | . . . . . Overflow Damage 61 | . . . . 61 Projectiles . | . . . . . Explosions 61 | . . . . 61 Melee . | . . . . . Knockbacks . | . . . . . Impact . | . . . . . Kinetic . | . . . . . Secondary . | . . . . . Self-Inflicted Damage 140 | . . . . 140 Shots 6 | . . . . 6 Rammed 8 | . 1 7 . . Targets Rammed 11 | . 4 7 . . Kicked . | . . . . . Crushed 3 | . 3 . . . Highest Temperature 16 | . 2 . . 16 Average Temperature 4 | . 1 . . 7 Received Heat Transfer 146 | . 126 . . 20 Siege Activations . | . . . . . Robots Corrupted . | . . . . . Combat Hostiles . | . . . . . Parts Fried . | . . . . . Impact Corruptions . | . . . . . Robots Melted . | . . . . . Combat Hostiles . | . . . . . Parts Melted . | . . . . . Heat Transferred . | . . . . . Parts Sabotaged . | . . . . . Parts Stolen . | . . . . . Parts Stripped . | . . . . . Power Chain Reactions . | . . . . . Alert | -11 -10 -10 -10 -9 ------- Run | Yrd Mat Min Exi Min Peak Influence 411 | . 237 179 . 411 Initial 34 | . . 34 . . Average 105 | . 90 34 . 282 Maximum Alert Level 2 | . 1 . . 2 Low Security (%) 78 | 100 87 100 . 20 Level 1 12 | . 12 . . 37 Level 2 9 | . . . . 42 Level 3 . | . . . . . Level 4 . | . . . . . Level 5 . | . . . . . High Security . | . . . . . Max Security . | . . . . . Squads Dispatched 4 | . 3 1 . . Investigation 2 | . 1 1 . . Extermination . | . . . . . Reinforcement 2 | . 2 . . . Assault . | . . . . . Garrison . | . . . . . Intercept . | . . . . . Searches Triggered . | . . . . . Construction Impeded . | . . . . . Haulers Reinforced . | . . . . . Active Scanning Responses . | . . . . . Cargo Convoy Interrupts . | . . . . . Stealth | -11 -10 -10 -10 -9 --------- Run | Yrd Mat Min Exi Min Distress Signals . | . . . . . Communications Jammed . | . . . . . Distress Signals . | . . . . . Times Spotted 55 | . 13 6 . 36 Peak Tracking Total 20 | . 4 3 . 20 Tactical Retreats 2 | . 1 . . 1 Traps | -11 -10 -10 -10 -9 ------- Run | Yrd Mat Min Exi Min Traps Triggered 1 | . 1 . . . Indirectly . | . . . . . Trap Hack Attempts . | . . . . . Triggered . | . . . . . Disarmed 3 | . 3 . . . Reprogrammed . | . . . . . Reused . | . . . . . Traps Extracted . | . . . . . Installed . | . . . . . Triggered . | . . . . . Machines | -11 -10 -10 -10 -9 ---------- Run | Yrd Mat Min Exi Min Machines Disabled 5 | . . 2 . 3 Max in Single Turn 2 | . . 1 . 2 Machines Repaired . | . . . . . Machines Dismantled . | . . . . . Machines Sabotaged . | . . . . . Overloaded Fab Kills . | . . . . . Hacking | -11 -10 -10 -10 -9 --------- Run | Yrd Mat Min Exi Min Machines Accessed 4 | . 3 1 . . Terminals 3 | . 3 . . . Fabricators . | . . . . . Repair Stations . | . . . . . Recycling Units . | . . . . . Scanalyzers . | . . . . . Garrison Access . | . . . . . Total Hacks 10 | . 9 1 . . Successful 4 | . 3 1 . . Failed 6 | . 6 . . . Catastrophic 4 | . 4 . . . Database Lockouts . | . . . . . Manual 7 | . 7 . . . Terminals 9 | . 9 . . . Fabricators . | . . . . . Repair Stations . | . . . . . Recycling Units . | . . . . . Scanalyzers . | . . . . . Garrison Access . | . . . . . Terminal Hacks 4 | . 3 1 . . Open Door 1 | . . 1 . . Disarm Traps 1 | . 1 . . . Hauler Manifests 1 | . 1 . . . Zone Layout 1 | . 1 . . . Fabricator Hacks . | . . . . . Repair Station Hacks . | . . . . . Recycling Unit Hacks . | . . . . . Scanalyzer . | . . . . . Garrison Access Hacks . | . . . . . Unauthorized Hacks . | . . . . . Terminals . | . . . . . Fabricators . | . . . . . Repair Stations . | . . . . . Recycling Units . | . . . . . Scanalyzers . | . . . . . Garrison Access . | . . . . . Data Cores Recovered . | . . . . . Used . | . . . . . Hacking Detections 3 | . 3 . . . Full Trace Events . | . . . . . Feedback Events . | . . . . . Feedback Blocked . | . . . . . Robot Schematics Acquired . | . . . . . Robots Built . | . . . . . Authchips . | . . . . . Time . | . . . . . Total Robot Build Rating . | . . . . . Part Schematics Acquired . | . . . . . Parts Built . | . . . . . Authchips . | . . . . . Time . | . . . . . Total Part Build Rating . | . . . . . Parts Repaired . | . . . . . Time . | . . . . . Parts Recycled . | . . . . . Recycled Matter . | . . . . . Retrieved Matter . | . . . . . Retrieved Components . | . . . . . Parts Scanalyzed . | . . . . . Part Schematics Acquired . | . . . . . Parts Damaged . | . . . . . Bothacking | -11 -10 -10 -10 -9 ------------ Run | Yrd Mat Min Exi Min Used RIF Installer . | . . . . . Robots Hacked . | . . . . . Non-combat . | . . . . . Combat . | . . . . . Robot Hacks Applied . | . . . . . Relay Couplers Released . | . . . . . Fabnet Peak Effective % . | . . . . . Robots Rewired . | . . . . . Allies Hacked . | . . . . . Hacks Repelled . | . . . . . Allies | -11 -10 -10 -10 -9 -------- Run | Yrd Mat Min Exi Min Total Allies . | . . . . . Largest Group . | . . . . . Highest-Rated Group . | . . . . . Highest-Rated Ally . | . . . . . Total Orders . | . . . . . Ally Attacks . | . . . . . Total Damage . | . . . . . Kills . | . . . . . Allies Corrupted . | . . . . . Allies Melted . | . . . . . Intel | -11 -10 -10 -10 -9 ------- Run | Yrd Mat Min Exi Min Robot Analysis Total . | . . . . . Derelict Logs Recovered 1 | . . . . 1 Drone Launches . | . . . . . Drone Recoveries . | . . . . . Exploration | -11 -10 -10 -10 -9 ------------- Run | Yrd Mat Min Exi Min Turns Passed 2883 | 87 612 1004 672 508 Spaces Moved 1624 | 56 295 581 419 273 Core 5 | 3 . . . 2 Treads 1602 | 36 295 581 419 271 Legs . | . . . . . Wheels 17 | 17 . . . . Hover . | . . . . . Flight . | . . . . . Fastest Speed 50 | 50 160 160 160 160 Average Speed 159 | 129 160 160 160 162 Slowest Speed 450 | 160 160 160 160 450 Overloaded Moves . | . . . . . Propulsion Burnouts . | . . . . . Robots Hopped . | . . . . . Cave-ins Triggered . | . . . . . Exploration Rate (%) 58 | 4 38 87 89 75 Regions Visited 4 Branch Regions 3 Pre-discovered Areas 1 | . . . . 1 Known Exits Taken 1 | . 1 . . . Unknown Exits Taken 3 | 1 . 1 1 . Scrap Searched 3 | . . 1 . 2 Spaces Dug . | . . . . . Terrain Destroyed 151 | . . . . 151 Melee . | . . . . . Projectile . | . . . . . AOE 151 | . . . . 151 Terrain Rammed . | . . . . . Walls Destroyed . | . . . . . Machines Disabled . | . . . . . Actions | -11 -10 -10 -10 -9 --------- Run | Yrd Mat Min Exi Min Total 1778 | 67 368 620 421 302 Wait 25 | 2 18 4 1 . Move 1620 | 55 294 580 418 273 Hop . | . . . . . Pick Up 19 | . 11 5 2 1 Fast Attach 11 | 8 2 . . 1 Attach 2 | . . 2 . . Detach 5 | 2 1 1 . 1 Swap 8 | . 1 2 . 5 Drop 8 | . 4 3 . 1 Fire 69 | . 33 16 . 20 Melee . | . . . . . Ram . | . . . . . Kick . | . . . . . Crush 11 | . 4 7 . . Escape Stasis . | . . . . . Rewire . | . . . . . Trap . | . . . . . Miscellaneous . | . . . . . Route ------- -11/Scrapyard -10/Materials (discovered 3 exits: *Mat / *Min x2) -10/Mines (discovered 2 exits: *Mat / *Exi) -10/Exiles (discovered 2 exits: [*Min x2]) -9/Mines History --------- Turn | Location | Event 12 | -11/Scrapyard | Discovered new exit (range 16) 88 | -11/Scrapyard | Entered Materials 101 | -10/Materials | Discovered new exit (range 14) 286 | -10/Materials | Discovered new exit (range 7) 317 | -10/Materials | Build established: Mutant 556 | -10/Materials | Discovered new exit (range 13) 613 | -10/Materials | Identified exit to Materials 695 | -10/Materials | Identified exit to Mines 700 | -10/Materials | Entered Mines 705 | -10/Mines | Met a Derelict bent on vengeance 721 | -10/Mines | Met a Derelict shopkeep closing up shop 956 | -10/Mines | Deemed a non-threat by the Exiles lab entrance 956 | -10/Mines | Discovered new exit (range 5) 1173 | -10/Mines | Received a Rocket Launcher from a helpful Derelict 1523 | -10/Mines | Discovered exit to Materials (range 15) 1704 | -10/Mines | Entered Exiles 1704 | -10/Exiles | Found Exiles lab abandoned 1725 | -10/Exiles | Discovered new exit (range 15) 2362 | -10/Exiles | Discovered new exit (range 11) 2376 | -10/Exiles | Entered Mines 2503 | -9/Mines | Learned location of Storage (-9) 2562 | -9/Mines | Core integrity fell below 50% 2829 | -9/Mines | Learned Materials interactive machine intel 2850 | -9/Mines | Assembled infested the area 2865 | -9/Mines | Core integrity fell below 20% 2884 | -9/Mines | Destroyed by D-53 Grenadier with Mini Grenade Launcher Last Messages --------------- Lgt. Treads destroyed. Lgt. Deuterium Engine destroyed. Destroyed Lgt. Deuterium Engine. as-32633 destroyed. as-90704 destroyed. Weapon Shielding destroyed. as-80536 destroyed. as-53150 destroyed. as-23044 destroyed. as-91803 destroyed. as-42541 destroyed. as-98283 destroyed. [Achievement: Exterminator] as-29478 destroyed. Lgt. Treads destroyed. as-36802 destroyed. as-85842 destroyed. as-79148 destroyed. The unstable cave ceiling collapses. as-62368 destroyed. Map ----- +----------------------------------------------------+ | ??????????????????# ?????????????? ???#### | | ??????????????????# ????????????? ### | | ??????????????????# ????????????? | | ??????????????????# ????????????? | | ?????????????????? ???????????? | | ?????????????????? ???????????? | | ?????????????????? ##???????????? | | ?????????????????? ??????##?????? ## | | ?????????????????? ?????? ???????? ??## | | ?????????????????? ??????# ?????????????###### | | ?????????????????? ??????# ????##########????# | | ?????????????????? ?????## ?#### #????# | | ?????????????????# ????## ## #??### | | ?????????????###?# ????# #### #?## | | ??????????? ## ###?# #??# ### | | ??????????? ?## ##??# ## | | ??????????# d ##### ##???# | | ??????????# d #??# ##????## | | ?????????# #??# ##?????## | | ????????? #??# ##?????#### | | ????????? * #??# #????????### | | ???????? %[ #### #?????????? | | ????????? * # ##?????????? | | ????????????# ##??????????? | | ????????????# ##???????????? | | ????????????# @ ###????????????# | | ?????????????# ##???????????????## | | ???????? #?????????????????? | | ???????? #### ##?????????????????? | | ????????????##### # #####??????????????????? | | ????????????????# ##???????????????????????? | | | | | | | | | | | | | | | | | | | | | | | | | | | | | | | | | | | | | | | +----------------------------------------------------+ Best States ------------- Heat Dissipation 25 Energy Generation 14 Energy Capacity 140 Matter Stores 300 Matter Capacity 300 Sight Range 16 Terrain Scan Density 10 Weapon Shielding 33 Evasion (%) 44 Recoil Reduction 2 Item Schematics ----------------- None Robot Schematics ------------------ None Fabricated ------------ Nothing Alien Tech Used ----------------- None Achievements -------------- Exterminator Quick And Dirty Challenges ------------ None Game ------ Seed StructuralNeutronCorpse Manual? 0 Play Time 00:17:32 Cumulative 41.1 hours Start 2024.04.17 @ 00:16:11 End 2024.04.18 @ 16:36:13 Sessions 2 Manual Loads 0 Difficulty Rogue Special Mode None Game No. 30 Rogue 30 Adventurer 0 Explorer 0 Win Type - Total 1 Types 1/0/0/0/0/0/0/0/0 Lore% 27 Gallery% 41 Achievement% 33 Wizard Run 0 Options --------- Layout 1 ASCII 0 Keyboard 1 Movement Numpad Keybinds 0 Fullscreen 1 Font 32/SmallcapsGlow Map View 77x35 Zoom Use 0% Tactical HUD 0 Map Filters NONE Filters NONE Steam 1 RUN: e15278c9-f759-429f-9cd1-4ffb4dcddc84